bitfinex/quotes_SOLUSD_20230116
["timestamp","ask_amount","ask_price","bid_price","bid_amount"]
[1673854332353,20.0,24.572,24.534,30.28000665]
[1673854332562,20.0,24.571,24.534,30.28000665]
[1673854332756,20.0,24.57,24.534,30.28000665]
[1673854332967,20.0,24.568,24.534,30.28000665]
[1673854333193,20.0,24.567,24.534,30.28000665]
[1673854333399,20.0,24.565,24.534,20.0]
[1673854333605,20.0,24.565,24.532,20.0]
[1673854333821,40.18295809,24.564,24.531,20.0]
[1673854334021,90.67541786,24.564,24.531,20.0]
[1673854334243,70.49245977,24.563,24.532,20.0]
[1673854334559,89.21345432,24.563,24.533,20.0]
[1673854334967,29.03049623,24.563,24.533,20.0]
[1673854335389,20.0,24.565,24.533,30.28000665]
[1673854335696,20.0,24.565,24.535,20.0]
[1673854335920,20.0,24.565,24.537,20.0]
[1673854336126,20.0,24.565,24.538,17.0]
[1673854336337,20.0,24.565,24.54,20.0]
[1673854336552,20.0,24.565,24.541,37.0]
[1673854337906,46.51360956,24.565,24.541,37.0]
[1673854338220,114.0441,24.566,24.541,37.0]
[1673854338444,114.0441,24.566,24.542,20.0]
[1673854338647,114.0441,24.566,24.543,17.0]
[1673854338856,114.0441,24.566,24.543,37.0]
[1673854339074,20.0,24.565,24.543,37.0]
[1673854339284,20.0,24.565,24.541,20.0]
[1673854339493,20.0,24.565,24.506,122.6]
[1673854339494,18.77,24.56,24.518,100.5287]
[1673854339698,18.77,24.56,24.51,18.93]
[1673854339699,20.0,24.558,24.511,20.0]
[1673854339912,38.97744,24.557,24.511,132.3558]
[1673854340127,21.97744,24.556,24.511,132.3558]
[1673854340437,20.0,24.549,24.5,18.82]
[1673854340650,18.9,24.54,24.501,112.3558]
[1673854340863,21.97744,24.539,24.492,100.5287]
[1673854341059,1.97744,24.538,24.493,112.3558]
[1673854341273,31.07786461,24.538,24.494,20.0]
[1673854341491,40.0,24.537,24.494,20.0]
[1673854341700,90.56238815,24.537,24.494,20.0]
[1673854341926,29.10042461,24.536,24.496,20.0]
[1673854342346,20.0,24.534,24.497,10.28000665]
[1673854343090,20.0,24.532,24.497,10.28000665]
[1673854343503,112.7988,24.531,24.497,10.28000665]
[1673854344041,20.0,24.53,24.497,10.28000665]
[1673854345592,20.0,24.53,24.499,20.0]
[1673854345925,20.0,24.53,24.501,20.0]
[1673854346139,112.7988,24.531,24.502,17.0]
[1673854346324,112.7988,24.531,24.504,20.0]
[1673854346533,112.7988,24.531,24.505,17.0]
[1673854346863,112.7988,24.531,24.506,40.0]
[1673854347182,112.7988,24.531,24.507,17.0]
[1673854347502,112.7988,24.531,24.508,40.0]
[1673854347811,112.7988,24.531,24.509,17.0]
[1673854348026,112.7988,24.531,24.51,20.0]
[1673854348343,112.7988,24.531,24.511,17.0]
[1673854348750,20.0,24.53,24.512,20.0]
[1673854349074,20.0,24.53,24.513,17.0]
[1673854349690,20.0,24.53,24.501,20.0]
[1673854350324,20.0,24.53,24.491,45.14663862]
[1673854350538,20.0,24.53,24.491,55.42664527]
[1673854350740,20.0,24.53,24.492,120.5287]
[1673854350941,20.0,24.53,24.497,20.0]
[1673854351363,20.0,24.528,24.495,111.6118]
[1673854351583,20.0,24.527,24.496,20.0]
[1673854351804,21.97744,24.526,24.495,36.80601407]
[1673854352119,20.0,24.519,24.486,20.0]
[1673854352334,20.0,24.517,24.482,20.0]
[1673854352639,20.0,24.517,24.476,10.28000665]
[1673854352867,70.4239083,24.516,24.477,118.6498]
[1673854353048,70.4239083,24.516,24.471,20.0]
[1673854353049,20.0,24.514,24.471,20.0]
[1673854353258,20.0,24.512,24.473,20.0]
[1673854353484,20.0,24.511,24.473,20.0]
[1673854353917,97.25931604,24.511,24.473,20.0]
[1673854354097,68.96194476,24.51,24.473,20.0]
[1673854354429,20.0,24.508,24.473,20.0]
[1673854354961,68.96194476,24.508,24.473,20.0]
[1673854355796,49.75933482,24.507,24.472,20.0]
[1673854355997,20.0,24.506,24.471,20.0]
[1673854356319,182.81043482,24.506,24.473,20.0]
[1673854356633,133.0511,24.506,24.473,20.0]
[1673854356821,109.9078,24.505,24.474,20.0]
[1673854357248,109.9078,24.505,24.475,20.0]
[1673854357454,20.0,24.504,24.476,37.0]
[1673854357676,20.0,24.504,24.477,20.0]
[1673854357887,20.0,24.504,24.478,20.0]
[1673854358094,20.0,24.504,24.476,20.0]
[1673854358835,20.0,24.504,24.474,20.0]
[1673854359574,20.0,24.504,24.475,20.0]
[1673854359901,20.0,24.504,24.477,20.0]
[1673854360211,20.0,24.504,24.478,20.0]
[1673854360526,20.0,24.504,24.478,37.0]
[1673854360738,109.9078,24.505,24.479,20.0]
[1673854360924,109.9078,24.505,24.481,20.0]
[1673854361139,109.9078,24.505,24.479,30.27417781]
[1673854361470,20.0,24.504,24.48,20.0]
[1673854361687,20.0,24.504,24.478,20.0]
[1673854361869,20.0,24.504,24.477,20.0]
[1673854362078,20.0,24.504,24.476,10.27417781]
[1673854362413,20.0,24.504,24.478,10.27417781]
[1673854362730,20.0,24.504,24.479,20.0]
[1673854362926,21.46196354,24.503,24.479,41.1171415]
[1673854363139,20.0,24.502,24.467,116.0137]
[1673854363343,20.0,24.5,24.462,41.1171415]
[1673854363554,20.0,24.499,24.463,20.0]
[1673854363884,20.0,24.498,24.464,41.1171415]
[1673854364200,28.29737128,24.498,24.465,20.0]
[1673854364419,21.46196354,24.507,24.47,18.87]
[1673854364622,21.46196354,24.507,24.471,17.0]
[1673854364817,154.63970461,24.505,24.471,17.0]
[1673854365028,129.9078,24.505,24.47,18.87]
[1673854365238,20.0,24.502,24.467,20.0]
[1673854365439,18.9,24.5,24.45,38.93]
[1673854365651,18.9,24.48,24.431,115.3141]
[1673854365873,18.93,24.47,24.431,115.3141]
[1673854366080,115.35954,24.479,24.431,115.3141]
[1673854366081,205.60908101,24.479,24.432,20.0]
[1673854366287,30.87430304,24.469,24.432,20.0]
[1673854366498,21.97744,24.468,24.432,20.0]
[1673854366710,1.97744,24.467,24.42,18.99]
[1673854367024,20.0,24.466,24.422,20.0]
[1673854367242,21.97744,24.465,24.422,20.0]
[1673854367452,21.97744,24.464,24.422,20.0]
[1673854367652,20.0,24.464,24.422,20.0]
[1673854368523,55.09542051,24.464,24.422,20.0]
[1673854368735,20.0,24.464,24.422,20.0]
[1673854369257,113.3821,24.465,24.422,20.0]
[1673854369473,113.3821,24.465,24.43,18.82]
[1673854369690,20.0,24.464,24.431,20.0]
[1673854370006,20.0,24.464,24.432,20.0]
[1673854370322,21.46196354,24.463,24.433,20.0]
[1673854370530,21.97744,24.464,24.431,20.0]
[1673854370937,1.97744,24.463,24.424,20.0]
[1673854371152,23.43940354,24.463,24.425,20.0]
[1673854371357,1.97744,24.463,24.425,20.0]
[1673854371567,113.3821,24.465,24.426,20.0]
[1673854371785,113.3821,24.465,24.43,18.93]
[1673854372004,113.3821,24.465,24.431,20.0]
[1673854372214,113.3821,24.465,24.425,10.26164457]
[1673854372215,18.9,24.46,24.414,20.0]
[1673854372619,20.0,24.463,24.42,18.93]
[1673854373033,21.46196354,24.462,24.421,20.0]
[1673854373255,1.97744,24.461,24.421,20.0]
[1673854373471,21.97744,24.461,24.422,20.0]
[1673854373886,21.97744,24.461,24.423,20.0]
[1673854374098,1.97744,24.46,24.423,20.0]
[1673854375369,1.97744,24.46,24.425,20.0]
[1673854375559,20.0,24.461,24.426,17.0]
[1673854375775,20.0,24.461,24.427,40.0]
[1673854376010,20.0,24.461,24.429,20.0]
[1673854376314,20.0,24.463,24.431,20.0]
[1673854376506,133.3821,24.465,24.431,20.0]
[1673854376721,113.3821,24.465,24.431,20.0]
[1673854376933,113.3821,24.465,24.432,17.0]
[1673854377144,113.3821,24.465,24.434,20.0]
[1673854377353,113.3821,24.465,24.435,37.0]
[1673854377564,113.3821,24.465,24.436,20.0]
[1673854377789,113.3821,24.465,24.438,20.0]
[1673854378188,113.3821,24.465,24.44,20.0]
[1673854378531,113.3821,24.465,24.442,20.0]
[1673854378722,113.3821,24.465,24.443,20.0]
[1673854378936,113.3821,24.465,24.444,17.0]
[1673854379353,118.0851,24.466,24.445,20.0]
[1673854379586,118.0851,24.466,24.446,17.0]
[1673854379774,118.0851,24.466,24.447,20.0]
[1673854380102,118.0851,24.466,24.448,17.0]
[1673854380417,118.0851,24.466,24.449,20.0]
[1673854380606,21.46196354,24.475,24.45,19.0]
[1673854380818,115.9159,24.478,24.452,20.0]
[1673854381153,115.9159,24.478,24.453,20.0]
[1673854381345,20.0,24.477,24.453,20.0]
[1673854381683,20.0,24.477,24.454,17.0]
[1673854382417,20.0,24.477,24.455,20.0]
[1673854382630,20.0,24.477,24.456,17.0]
[1673854382816,20.0,24.477,24.457,20.0]
[1673854383152,20.0,24.477,24.458,17.0]
[1673854383336,20.0,24.477,24.459,20.0]
[1673854383548,20.0,24.477,24.46,17.0]
[1673854383886,20.0,24.475,24.433,20.0]
[1673854384196,61.45906051,24.474,24.433,20.0]
[1673854384515,20.0,24.472,24.433,20.0]
[1673854384728,20.0,24.471,24.433,20.0]
[1673854385032,20.0,24.469,24.43,18.92]
[1673854385244,122.6,24.467,24.4,19.14]
[1673854385570,122.6,24.467,24.39,18.92]
[1673854385571,18.9,24.44,24.39,18.92]
[1673854385888,20.0,24.438,24.391,20.0]
[1673854386095,1.97744,24.437,24.39,18.92]
[1673854386295,278.13588444,24.437,24.39,18.92]
[1673854386619,20.0,24.435,24.391,20.0]
[1673854386853,1.97744,24.434,24.391,20.0]
[1673854387025,70.05249124,24.434,24.41,18.98]
[1673854387233,115.9599,24.437,24.411,20.0]
[1673854387783,115.9599,24.437,24.412,20.0]
[1673854387975,67.36105156,24.436,24.403,20.0]
[1673854388183,21.97744,24.435,24.401,20.0]
[1673854388401,1.97744,24.434,24.401,20.0]
[1673854388615,35.06809432,24.434,24.41,18.92]
[1673854388825,118.3504,24.44,24.41,18.92]
[1673854389352,115.9599,24.451,24.42,18.95]
[1673854389755,20.0,24.45,24.41,18.84]
[1673854389987,1.97744,24.449,24.411,37.0]
[1673854390294,1.97744,24.449,24.411,17.0]
[1673854390295,20.0,24.448,24.411,17.0]
[1673854390488,1.97744,24.447,24.411,17.0]
[1673854390707,35.32050391,24.447,24.411,17.0]
[1673854390922,20.0,24.446,24.411,17.0]
[1673854391120,1.97744,24.445,24.411,17.0]
[1673854391761,1.97744,24.445,24.412,20.0]
[1673854391977,20.0,24.444,24.413,17.0]
[1673854392187,20.0,24.444,24.414,20.0]
[1673854392398,20.0,24.444,24.415,17.0]
[1673854392826,20.0,24.446,24.417,20.0]
[1673854393016,20.0,24.446,24.416,20.0]
[1673854393226,1.97744,24.445,24.411,20.0]
[1673854393437,20.0,24.444,24.411,20.0]
[1673854393772,20.0,24.444,24.412,20.0]
[1673854394402,20.0,24.446,24.412,20.0]
[1673854394804,20.0,24.446,24.413,17.0]
[1673854395025,20.0,24.446,24.415,20.0]
[1673854395230,20.0,24.446,24.416,37.0]
[1673854396070,100.84941436,24.446,24.416,20.0]
[1673854396272,100.84941436,24.446,24.411,20.0]
[1673854396501,20.0,24.444,24.411,20.0]
[1673854396715,21.97744,24.444,24.411,20.0]
[1673854397023,20.0,24.442,24.402,119.4652]
[1673854397238,1.97744,24.441,24.403,20.0]
[1673854397445,126.44844128,24.441,24.403,20.0]
[1673854397650,144.47100128,24.44,24.403,20.0]
[1673854397858,233.66254797,24.44,24.403,20.0]
[1673854398078,20.0,24.438,24.403,20.0]
[1673854398297,108.353,24.437,24.403,20.0]
[1673854398510,108.353,24.437,24.41,19.0]
[1673854398717,20.0,24.436,24.41,19.0]
[1673854399120,20.0,24.434,24.41,19.0]
[1673854399450,20.0,24.434,24.4,18.92]
[1673854399451,38.14078693,24.433,24.4,18.92]
[1673854399647,20.0,24.432,24.4,18.92]
[1673854400181,20.0,24.448,24.4,18.92]
[1673854400403,20.0,24.448,24.41,19.04]
[1673854400587,20.0,24.448,24.4,75.98]
[1673854400588,20.0,24.436,24.401,20.0]
[1673854400803,56.49672026,24.436,24.401,20.0]
[1673854401012,36.49672026,24.435,24.401,20.0]
[1673854401217,36.49672026,24.435,24.402,20.0]
[1673854401450,49.62575331,24.436,24.402,20.0]
[1673854401638,20.0,24.433,24.402,20.0]
[1673854401853,1.97744,24.432,24.39,149.8443]
[1673854402060,116.13288062,24.432,24.39,149.8443]
[1673854402276,132.23717795,24.431,24.39,19.04]
[1673854402485,132.23717795,24.431,24.381,20.0]
[1673854402486,20.88744,24.43,24.382,113.9526]
[1673854402692,21.97744,24.429,24.383,20.0]
[1673854402922,1.97744,24.428,24.383,20.0]
[1673854403135,71.83611358,24.428,24.39,19.0]
[1673854403345,20.0,24.426,24.39,19.0]
[1673854403553,115.8344,24.425,24.39,19.0]
[1673854403754,20.0,24.424,24.391,20.0]
[1673854403958,115.8344,24.425,24.391,20.0]
[1673854405547,20.0,24.424,24.391,20.0]
[1673854405759,20.0,24.424,24.392,20.0]
[1673854405957,20.0,24.422,24.392,20.0]
[1673854406374,115.8344,24.425,24.392,20.0]
[1673854406591,20.0,24.424,24.392,20.0]
[1673854407016,65.21857105,24.424,24.392,20.0]
[1673854407226,65.21857105,24.424,24.393,20.0]
[1673854407440,65.21857105,24.424,24.394,20.0]
[1673854407764,1.97744,24.423,24.392,20.0]
[1673854407966,36.76681826,24.423,24.383,20.0]
[1673854408171,48.35590438,24.422,24.383,20.0]
[1673854408388,1.97744,24.421,24.383,20.0]
[1673854408586,20.0,24.42,24.38,19.18]
[1673854408799,1.97744,24.419,24.38,19.18]
[1673854409221,39.36681826,24.419,24.38,19.18]
[1673854409427,57.38937826,24.418,24.38,19.18]
[1673854409635,1.97744,24.417,24.38,19.18]
[1673854409857,20.0,24.416,24.38,19.18]
[1673854410068,67.20562391,24.416,24.38,19.18]
[1673854410487,20.0,24.414,24.381,20.0]
[1673854410690,20.0,24.414,24.381,139.0236]
[1673854410902,20.0,24.412,24.381,139.0236]
[1673854411121,20.0,24.412,24.381,119.0236]
[1673854411334,42.35451159,24.411,24.38,19.18]
[1673854411528,21.97744,24.412,24.38,19.18]
[1673854411739,20.0,24.412,24.381,20.0]
[1673854412807,20.0,24.412,24.382,20.0]
[1673854413010,1.97744,24.411,24.381,20.0]
[1673854413429,1.97744,24.411,24.37,19.04]
[1673854413748,44.49951159,24.41,24.371,20.0]
[1673854413961,1.97744,24.411,24.371,20.0]
[1673854413962,1.97744,24.411,24.38,19.0]
[1673854414165,20.0,24.412,24.381,20.0]
[1673854414991,139.6963,24.413,24.383,20.0]
[1673854415201,139.6963,24.413,24.384,37.0]
[1673854415409,20.0,24.412,24.384,37.0]
[1673854415623,20.0,24.412,24.384,20.0]
[1673854415828,20.0,24.412,24.382,20.0]
[1673854416067,20.0,24.412,24.383,20.0]
[1673854416261,20.0,24.41,24.384,20.0]
[1673854416915,20.0,24.412,24.385,17.0]
[1673854417100,20.0,24.412,24.387,20.0]
[1673854417306,20.0,24.412,24.388,37.0]
[1673854418462,20.0,24.412,24.389,20.0]
[1673854418792,20.0,24.412,24.388,37.0]
[1673854418793,119.6963,24.413,24.39,37.0]
[1673854418990,119.6963,24.413,24.391,20.0]
[1673854419196,119.6963,24.413,24.375,20.0]
[1673854419411,20.0,24.411,24.37,19.04]
[1673854419633,1.97744,24.41,24.37,19.04]
[1673854419826,20.0,24.409,24.37,19.04]
[1673854420036,18.97744,24.408,24.37,19.04]
[1673854420264,21.97744,24.407,24.371,20.0]
[1673854420465,1.97744,24.406,24.371,20.0]
[1673854420889,34.78553159,24.406,24.371,20.0]
[1673854421103,20.0,24.405,24.371,20.0]
[1673854421306,1.97744,24.404,24.371,20.0]
[1673854421739,1.97744,24.404,24.37,19.04]
[1673854422154,1.97744,24.404,24.371,20.0]
[1673854422155,47.55114245,24.404,24.371,20.0]
[1673854422365,47.55114245,24.404,24.371,40.0]
[1673854422575,1.97744,24.404,24.371,40.0]
[1673854423315,1.97744,24.404,24.372,17.0]
[1673854423636,119.6963,24.413,24.38,18.88]
[1673854423842,21.97744,24.412,24.381,37.0]
[1673854424059,1.97744,24.411,24.381,37.0]
[1673854424459,1.97744,24.411,24.382,20.0]
[1673854424669,1.97744,24.411,24.384,20.0]
[1673854424990,1.97744,24.411,24.385,17.0]
[1673854425409,1.97744,24.411,24.39,18.96]
[1673854425723,119.6963,24.413,24.39,18.96]
[1673854425935,20.0,24.412,24.391,17.0]
[1673854426144,20.0,24.412,24.39,18.96]
[1673854426354,40.90706625,24.411,24.391,20.0]
[1673854426569,1.97744,24.41,24.381,20.0]
[1673854426768,21.97744,24.41,24.382,20.0]
[1673854426982,21.97744,24.41,24.383,20.0]
[1673854428047,119.6963,24.413,24.39,19.08]
[1673854428243,119.6963,24.413,24.391,20.0]
[1673854428455,119.6963,24.413,24.392,20.0]
[1673854428669,119.6963,24.413,24.393,17.0]
[1673854428876,119.6963,24.413,24.394,20.0]
[1673854429085,119.6963,24.413,24.395,17.0]
[1673854429309,119.6963,24.413,24.396,20.0]
[1673854429713,119.6963,24.413,24.394,20.0]
[1673854429928,20.0,24.412,24.391,20.0]
[1673854430869,20.0,24.412,24.392,17.0]
[1673854431309,20.0,24.412,24.393,20.0]
[1673854431497,20.0,24.412,24.394,17.0]
[1673854431707,20.0,24.412,24.395,20.0]
[1673854432147,38.24062625,24.411,24.395,20.0]
[1673854432377,20.0,24.41,24.391,20.0]
[1673854433192,20.0,24.41,24.392,17.0]
[1673854433403,20.0,24.41,24.393,20.0]
[1673854433625,20.0,24.41,24.394,17.0]
[1673854433835,20.0,24.41,24.395,20.0]
[1673854434146,20.0,24.41,24.396,17.0]
[1673854434352,20.0,24.41,24.397,20.0]
[1673854434565,20.0,24.41,24.398,17.0]
[1673854434771,20.0,24.41,24.399,20.0]
[1673854434981,20.0,24.41,24.4,17.0]
[1673854435188,20.0,24.41,24.401,20.0]
[1673854435421,20.0,24.41,24.402,17.0]
[1673854435612,20.0,24.41,24.401,20.0]
[1673854435821,20.0,24.41,24.391,20.0]
[1673854436882,20.0,24.41,24.392,17.0]
[1673854437099,20.0,24.41,24.393,20.0]
[1673854437729,20.0,24.41,24.382,20.0]
[1673854438476,20.0,24.41,24.383,20.0]
[1673854438669,20.0,24.41,24.39,19.0]
[1673854438873,20.0,24.41,24.391,37.0]
[1673854439624,20.0,24.41,24.38,19.08]
[1673854439836,1.97744,24.409,24.38,19.08]
[1673854442973,20.0,24.408,24.38,19.08]
[1673854443191,1.97744,24.407,24.38,19.08]
[1673854443729,1.97744,24.407,24.381,20.0]
[1673854444045,20.0,24.405,24.381,20.0]
[1673854444254,1.97744,24.404,24.381,20.0]
[1673854444659,1.97744,24.404,24.376,20.0]
[1673854445616,1.97744,24.404,24.375,20.0]
[1673854445827,1.97744,24.404,24.376,20.0]
[1673854446868,1.97744,24.404,24.377,17.0]
[1673854447080,1.97744,24.404,24.378,20.0]
[1673854447279,1.97744,24.404,24.379,16.5]
[1673854447706,1.97744,24.404,24.38,20.0]
[1673854449503,1.97744,24.404,24.381,17.0]
[1673854449696,1.97744,24.404,24.382,20.0]
[1673854450540,1.97744,24.404,24.375,20.0]
[1673854450753,1.97744,24.404,24.38,19.02]
[1673854450981,1.97744,24.404,24.381,20.0]
[1673854451190,1.97744,24.404,24.382,20.0]
[1673854452238,51.67167952,24.403,24.382,20.0]
[1673854452432,51.67167952,24.403,24.39,19.04]
[1673854452643,119.6963,24.413,24.391,20.0]
[1673854452852,119.6963,24.413,24.4,19.04]
[1673854453089,111.6414,24.414,24.4,19.04]
[1673854453284,111.6414,24.414,24.401,17.0]
[1673854454226,20.0,24.413,24.401,17.0]
[1673854454965,111.6414,24.414,24.401,17.0]
[1673854456554,20.0,24.413,24.401,17.0]
[1673854457367,20.0,24.413,24.4,19.04]
[1673854458234,111.6414,24.414,24.4,19.04]
[1673854458777,111.6414,24.414,24.401,17.0]
[1673854459083,20.0,24.413,24.401,17.0]
[1673854459407,20.0,24.413,24.391,20.0]
[1673854459589,20.0,24.413,24.39,19.06]
[1673854459794,1.97744,24.412,24.38,19.09]
[1673854460012,20.0,24.411,24.381,20.0]
[1673854460229,1.97744,24.41,24.381,20.0]
[1673854460555,42.44973292,24.41,24.381,20.0]
[1673854460861,132.43730577,24.409,24.38,19.09]
[1673854461082,20.0,24.407,24.38,19.09]
[1673854461294,1.97744,24.406,24.38,19.09]
[1673854461485,101.05474577,24.406,24.38,19.09]
[1673854461699,20.0,24.405,24.38,19.09]
[1673854461909,1.97744,24.404,24.38,19.09]
[1673854462121,56.94245285,24.404,24.38,19.09]
[1673854462760,1.97744,24.404,24.382,20.0]
[1673854463077,1.97744,24.404,24.384,20.0]
[1673854463298,1.97744,24.404,24.385,37.0]
[1673854463607,33.98949893,24.413,24.39,19.08]
[1673854463792,33.98949893,24.413,24.391,57.0]
[1673854465069,114.9859,24.417,24.391,57.0]
[1673854465283,20.0,24.416,24.391,57.0]
[1673854466437,114.9859,24.417,24.391,57.0]
[1673854467590,114.9859,24.417,24.4,19.08]
[1673854467911,114.9859,24.417,24.401,17.0]
[1673854469068,20.0,24.413,24.4,19.08]
[1673854469693,20.0,24.416,24.4,19.08]
[1673854469901,20.0,24.423,24.4,19.08]
[1673854470113,20.0,24.423,24.401,20.0]
[1673854470967,20.0,24.423,24.402,17.0]
[1673854471159,20.0,24.423,24.403,20.0]
[1673854471373,20.0,24.423,24.404,17.0]
[1673854471814,20.0,24.423,24.405,20.0]
[1673854472033,20.0,24.423,24.406,17.0]
[1673854472532,20.0,24.423,24.4,19.08]
[1673854472741,1.97744,24.422,24.39,19.04]
[1673854472952,43.14826625,24.422,24.391,20.0]
[1673854473174,61.12575958,24.421,24.391,20.0]
[1673854473366,1.97744,24.42,24.391,20.0]
[1673854473586,43.10319958,24.42,24.39,19.04]
[1673854473797,61.12575958,24.419,24.39,19.04]
[1673854474006,1.97744,24.418,24.39,19.04]
[1673854474215,20.0,24.417,24.39,19.04]
[1673854474430,1.97744,24.416,24.39,19.04]
[1673854474644,43.10319958,24.416,24.39,19.04]
[1673854474845,20.0,24.415,24.391,20.0]
[1673854475055,1.97744,24.414,24.391,20.0]
[1673854475274,43.10319958,24.414,24.391,20.0]
[1673854475481,20.0,24.413,24.391,20.0]
[1673854475690,1.97744,24.412,24.391,20.0]
[1673854476116,1.97744,24.412,24.392,17.0]
[1673854476314,1.97744,24.412,24.393,20.0]
[1673854476522,1.97744,24.412,24.394,17.0]
[1673854476753,1.97744,24.412,24.395,20.0]
[1673854477067,1.97744,24.412,24.396,17.0]
[1673854477257,1.97744,24.412,24.397,20.0]
[1673854477470,1.97744,24.412,24.398,17.0]
[1673854479687,20.0,24.413,24.398,17.0]
[1673854479903,119.6181,24.44,24.4,19.08]
[1673854480220,20.0,24.425,24.402,20.0]
[1673854480621,20.0,24.425,24.403,17.0]
[1673854481277,20.0,24.425,24.401,17.0]
[1673854481707,109.5242,24.426,24.402,20.0]
[1673854481917,109.5242,24.426,24.403,17.0]
[1673854481918,20.0,24.425,24.403,17.0]
[1673854482421,129.5242,24.426,24.403,17.0]
[1673854482633,129.5242,24.426,24.41,19.08]
[1673854482845,20.0,24.426,24.411,17.0]
[1673854485159,133.0071,24.432,24.411,17.0]
[1673854489594,20.0,24.439,24.412,20.0]
[1673854489781,138.6375,24.438,24.413,17.0]
[1673854489995,138.6375,24.438,24.41,19.08]
[1673854490202,20.0,24.437,24.42,19.09]
[1673854490413,20.0,24.437,24.421,17.0]
[1673854491572,20.0,24.437,24.42,19.09]
[1673854491777,21.97744,24.437,24.41,18.97]
[1673854492001,23.43940354,24.436,24.401,114.7185]
[1673854492209,1.97744,24.435,24.401,114.7185]
[1673854492426,43.43940354,24.435,24.402,20.0]
[1673854492644,21.97744,24.435,24.41,19.09]
[1673854492852,43.43940354,24.435,24.41,19.09]
[1673854493472,43.43940354,24.435,24.411,17.0]
[1673854494336,43.43940354,24.435,24.41,19.09]
[1673854494544,43.43940354,24.435,24.401,134.7185]
[1673854494865,211.37846308,24.434,24.39,18.97]
[1673854495174,18.94,24.43,24.38,19.09]
[1673854495374,18.97744,24.429,24.38,19.09]
[1673854495582,20.0,24.427,24.381,20.0]
[1673854495903,122.6,24.425,24.381,20.0]
[1673854496120,20.0,24.423,24.381,20.0]
[1673854496315,136.15164,24.422,24.381,20.0]
[1673854496518,20.0,24.42,24.381,20.0]
[1673854496731,38.97744,24.419,24.381,20.0]
[1673854497057,21.97744,24.418,24.381,20.0]
[1673854497273,1.97744,24.417,24.381,20.0]
[1673854497474,50.62366601,24.417,24.381,20.0]
[1673854497684,1.97744,24.417,24.382,20.0]
[1673854497989,20.0,24.415,24.383,20.0]
[1673854498221,115.1975,24.414,24.39,19.05]
[1673854498424,1.97744,24.413,24.39,19.05]